[Event "*** Titled Tuesday Blitz"]
[Site "Chess.com"]
[Date "2020.12.01"]
[Round "1"]
[White "catzapto"]
[Black "szachuspl"]
[Result "0-1"]
[WhiteElo "2129"]
[BlackElo "2497"]
[TimeControl "180+1"]
[EndTime "10:07:05 PST"]
[Termination "szachuspl won by resignation"]

1. e4 {[%clk 0:03:00.4]} 1... c5 {[%clk 0:02:57.2]} 2. Nf3 {[%clk 0:03:00.4]}
2... e6 {[%clk 0:02:56]} 3. c3 {[%clk 0:02:59.7]} 3... Nf6 {[%clk 0:02:52.1]} 4.
e5 {[%clk 0:02:59]} 4... Nd5 {[%clk 0:02:52.2]} 5. d4 {[%clk 0:02:59.9]} 5...
cxd4 {[%clk 0:02:52.5]} 6. cxd4 {[%clk 0:03:00.8]} 6... d6 {[%clk 0:02:52.1]} 7.
Nc3 {[%clk 0:02:59.8]} 7... Nxc3 {[%clk 0:02:50]} 8. bxc3 {[%clk 0:03:00.7]}
8... Qc7 {[%clk 0:02:50.1]} 9. Bb5+ {[%clk 0:02:54.3]} 9... Nd7 {[%clk
0:02:48.3]} 10. Bd2 {[%clk 0:02:48.8]} 10... a6 {[%clk 0:02:47]} 11. Bxd7+
{[%clk 0:02:48.4]} 11... Bxd7 {[%clk 0:02:46.9]} 12. O-O {[%clk 0:02:48.7]}
12... Bb5 {[%clk 0:02:33.6]} 13. Re1 {[%clk 0:02:45.8]} 13... d5 {[%clk
0:02:30.5]} 14. a4 {[%clk 0:02:39.6]} 14... Bc4 {[%clk 0:02:22]} 15. Bg5 {[%clk
0:02:39.6]} 15... h6 {[%clk 0:02:21.7]} 16. Bh4 {[%clk 0:02:39.5]} 16... g5
{[%clk 0:02:19]} 17. Bg3 {[%clk 0:02:37.3]} 17... Be7 {[%clk 0:02:19.4]} 18. Nd2
{[%clk 0:02:36.2]} 18... Bd3 {[%clk 0:02:19.6]} 19. Re3 {[%clk 0:02:28.7]} 19...
Bg6 {[%clk 0:02:18.9]} 20. c4 {[%clk 0:02:24.9]} 20... dxc4 {[%clk 0:02:16.8]}
21. d5 {[%clk 0:02:25.4]} 21... Bc5 {[%clk 0:02:11.6]} 22. d6 {[%clk 0:02:24.3]}
22... Qc6 {[%clk 0:02:08.5]} 23. Nxc4 {[%clk 0:02:20.6]} 23... Bxe3 {[%clk
0:02:06.3]} 24. Nxe3 {[%clk 0:02:21.5]} 24... O-O {[%clk 0:02:05.1]} 25. Rc1
{[%clk 0:02:21.4]} 25... Qe4 {[%clk 0:02:00.2]} 26. Rc7 {[%clk 0:02:11]} 26...
b5 {[%clk 0:01:58.3]} 27. Qc1 {[%clk 0:01:43.6]} 27... bxa4 {[%clk 0:01:50.6]}
28. f3 {[%clk 0:01:44]} 28... Qb1 {[%clk 0:01:50.1]} 29. Qxb1 {[%clk 0:01:28]}
29... Bxb1 {[%clk 0:01:51]} 30. Nc4 {[%clk 0:01:28.5]} 30... Rac8 {[%clk
0:01:42.6]} 31. Nb6 {[%clk 0:01:27.1]} 31... Rcd8 {[%clk 0:01:08]} 32. Bf2
{[%clk 0:01:04.9]} 32... a3 {[%clk 0:01:07.1]} 33. Nd7 {[%clk 0:01:04.6]} 33...
a2 {[%clk 0:01:06.6]} 34. Bd4 {[%clk 0:01:03.9]} 34... Bd3 {[%clk 0:00:55.9]}
35. Nxf8 {[%clk 0:01:03.2]} 35... Kxf8 {[%clk 0:00:55]} 36. d7 {[%clk
0:01:03.7]} 36... Bb5 {[%clk 0:00:49.5]} 37. Bc5+ {[%clk 0:01:03.6]} 37... Kg7
{[%clk 0:00:48.5]} 38. Bd4 {[%clk 0:00:26.2]} 38... Bxd7 {[%clk 0:00:47.9]} 39.
Kf2 {[%clk 0:00:23.4]} 39... Bb5 {[%clk 0:00:46]} 40. Bc3 {[%clk 0:00:15.3]}
40... Rd2+ {[%clk 0:00:41.1]} 41. Ke3 {[%clk 0:00:13.4]} 41... Rc2 {[%clk
0:00:41.1]} 42. f4 {[%clk 0:00:10.4]} 42... Rxc3+ {[%clk 0:00:41]} 43. Rxc3
{[%clk 0:00:10.4]} 43... a1=Q {[%clk 0:00:41.4]} 44. fxg5 {[%clk 0:00:11.3]}
44... Qxc3+ {[%clk 0:00:41.2]} 45. Kf4 {[%clk 0:00:12.2]} 45... Qd4+ {[%clk
0:00:41.1]} 0-1

[Event "*** Titled Tuesday Blitz"]
[Site "Chess.com"]
[Date "2020.12.01"]
[Round "1"]
[White "dretch"]
[Black "Triumphmate"]
[Result "1-0"]
[WhiteElo "2820"]
[BlackElo "2404"]
[TimeControl "180+1"]
[EndTime "10:07:07 PST"]
[Termination "dretch won by checkmate"]

1. d4 {[%clk 0:03:00.3]} 1... d5 {[%clk 0:02:57.8]} 2. c4 {[%clk 0:02:59.7]}
2... e6 {[%clk 0:02:54.4]} 3. Nc3 {[%clk 0:02:59.7]} 3... Be7 {[%clk 0:02:54.1]}
4. cxd5 {[%clk 0:02:59]} 4... exd5 {[%clk 0:02:51.7]} 5. Bf4 {[%clk 0:02:59.6]}
5... c6 {[%clk 0:02:51.7]} 6. e3 {[%clk 0:02:51.5]} 6... Nf6 {[%clk 0:02:48.6]}
7. Bd3 {[%clk 0:02:50.9]} 7... Be6 {[%clk 0:02:47.9]} 8. Nge2 {[%clk 0:02:42.1]}
8... Nbd7 {[%clk 0:02:47.6]} 9. h3 {[%clk 0:02:37.8]} 9... Rc8 {[%clk
0:02:46.4]} 10. O-O {[%clk 0:02:35.6]} 10... O-O {[%clk 0:02:45.4]} 11. Rc1
{[%clk 0:02:33.3]} 11... h6 {[%clk 0:02:43.4]} 12. Bg3 {[%clk 0:02:24.5]} 12...
a6 {[%clk 0:02:41]} 13. Nf4 {[%clk 0:02:24.2]} 13... c5 {[%clk 0:02:38.7]} 14.
Qf3 {[%clk 0:02:13.7]} 14... Nb6 {[%clk 0:02:26.7]} 15. Rfd1 {[%clk 0:02:08.1]}
15... cxd4 {[%clk 0:02:25.8]} 16. exd4 {[%clk 0:02:06.2]} 16... Bd6 {[%clk
0:02:22]} 17. Re1 {[%clk 0:02:03.6]} 17... Qd7 {[%clk 0:02:17.9]} 18. Re2 {[%clk
0:01:49.4]} 18... Rfe8 {[%clk 0:02:13.2]} 19. Rce1 {[%clk 0:01:44.4]} 19... Nc4
{[%clk 0:02:13.2]} 20. Bh4 {[%clk 0:01:42.2]} 20... Nh7 {[%clk 0:01:45.3]} 21.
Ncxd5 {[%clk 0:01:28.4]} 21... Bxf4 {[%clk 0:01:16.7]} 22. Nxf4 {[%clk
0:01:24.3]} 22... Qxd4 {[%clk 0:01:08.4]} 23. Nxe6 {[%clk 0:00:58.5]} 23... fxe6
{[%clk 0:01:03.6]} 24. b3 {[%clk 0:00:37.1]} 24... Nb2 {[%clk 0:00:34.3]} 25.
Be4 {[%clk 0:00:24.3]} 25... Rf8 {[%clk 0:00:25.8]} 26. Qg4 {[%clk 0:00:23.8]}
26... Qc3 {[%clk 0:00:09.8]} 27. Qg6 {[%clk 0:00:18.9]} 27... Nf6 {[%clk
0:00:04.3]} 28. Bxf6 {[%clk 0:00:19.1]} 28... Rxf6 {[%clk 0:00:04.8]} 29. Qh7+
{[%clk 0:00:20]} 29... Kf7 {[%clk 0:00:05.4]} 30. Bf3 {[%clk 0:00:20.3]} 30...
Nd3 {[%clk 0:00:04.9]} 31. Bh5+ {[%clk 0:00:20.2]} 31... Ke7 {[%clk 0:00:05.3]}
32. Qxg7+ {[%clk 0:00:20.4]} 32... Rf7 {[%clk 0:00:05.3]} 33. Rxe6+ {[%clk
0:00:18.5]} 33... Kd8 {[%clk 0:00:04.9]} 34. Qxf7 {[%clk 0:00:18.6]} 34... Nxe1
{[%clk 0:00:04.2]} 35. Re8# {[%clk 0:00:18.9]} 1-0

[Event "*** Titled Tuesday Blitz"]
[Site "Chess.com"]
[Date "2020.12.01"]
[Round "1"]
[White "Bwert2602"]
[Black "Gudmundur_Kjartansson"]
[Result "0-1"]
[WhiteElo "2225"]
[BlackElo "2554"]
[TimeControl "180+1"]
[EndTime "10:07:09 PST"]
[Termination "Gudmundur_Kjartansson won on time"]

1. e4 {[%clk 0:03:00.9]} 1... c5 {[%clk 0:02:59.4]} 2. Nf3 {[%clk 0:03:00.5]}
2... d6 {[%clk 0:02:58.1]} 3. Nc3 {[%clk 0:02:59.6]} 3... Nf6 {[%clk 0:02:57.7]}
4. Bc4 {[%clk 0:02:56.3]} 4... g6 {[%clk 0:02:52]} 5. e5 {[%clk 0:02:54.7]} 5...
dxe5 {[%clk 0:02:48.2]} 6. Nxe5 {[%clk 0:02:55.6]} 6... e6 {[%clk 0:02:47.9]} 7.
Qf3 {[%clk 0:02:52.5]} 7... Bg7 {[%clk 0:02:45.5]} 8. d3 {[%clk 0:02:46.1]} 8...
O-O {[%clk 0:02:40.6]} 9. Bg5 {[%clk 0:02:41.5]} 9... h6 {[%clk 0:02:35.5]} 10.
Bh4 {[%clk 0:02:41]} 10... Nbd7 {[%clk 0:02:21.6]} 11. Nxd7 {[%clk 0:02:39.4]}
11... Bxd7 {[%clk 0:02:18.6]} 12. Ne4 {[%clk 0:02:36.1]} 12... g5 {[%clk
0:02:16.7]} 13. Bg3 {[%clk 0:02:11.4]} 13... b5 {[%clk 0:01:43.7]} 14. Bb3
{[%clk 0:01:50.4]} 14... Nxe4 {[%clk 0:01:37.6]} 15. Qxe4 {[%clk 0:01:40.6]}
15... Bxb2 {[%clk 0:01:36.3]} 16. Rb1 {[%clk 0:01:31.2]} 16... Bc3+ {[%clk
0:01:34.4]} 17. Kf1 {[%clk 0:01:31.5]} 17... f5 {[%clk 0:01:16]} 18. Bxe6+
{[%clk 0:01:26.9]} 18... Kh7 {[%clk 0:01:14.4]} 19. Qb7 {[%clk 0:01:17.6]} 19...
f4 {[%clk 0:00:48]} 20. Bxd7 {[%clk 0:01:13.8]} 20... Kh8 {[%clk 0:00:34.9]} 21.
Bxb5 {[%clk 0:00:34.5]} 21... Bd4 {[%clk 0:00:27]} 22. Bc6 {[%clk 0:00:21.2]}
22... Rc8 {[%clk 0:00:15.9]} 23. Be4 {[%clk 0:00:20.4]} 23... Rc7 {[%clk
0:00:14.7]} 24. Qb3 {[%clk 0:00:14.7]} 24... fxg3 {[%clk 0:00:13.9]} 25. f3
{[%clk 0:00:14.6]} 25... Qd6 {[%clk 0:00:07.9]} 26. hxg3 {[%clk 0:00:07.6]}
26... Be5 {[%clk 0:00:04.2]} 27. Qd5 {[%clk 0:00:02]} 27... Qf6 {[%clk
0:00:03.4]} 0-1

[Event "*** Titled Tuesday Blitz"]
[Site "Chess.com"]
[Date "2020.12.01"]
[Round "1"]
[White "igorknyazev"]
[Black "WPWPWP-2015"]
[Result "0-1"]
[WhiteElo "2071"]
[BlackElo "2482"]
[TimeControl "180+1"]
[EndTime "10:07:10 PST"]
[Termination "WPWPWP-2015 won on time"]

1. e4 {[%clk 0:02:51.9]} 1... e5 {[%clk 0:02:58.7]} 2. Nf3 {[%clk 0:02:51.1]}
2... Nf6 {[%clk 0:02:56.7]} 3. Nxe5 {[%clk 0:02:50.2]} 3... d6 {[%clk
0:02:56.3]} 4. Nf3 {[%clk 0:02:48.6]} 4... Nxe4 {[%clk 0:02:56.3]} 5. Qe2 {[%clk
0:02:46.2]} 5... Qe7 {[%clk 0:02:55.6]} 6. d3 {[%clk 0:02:46.4]} 6... Nf6 {[%clk
0:02:56.1]} 7. Bg5 {[%clk 0:02:46.5]} 7... Qxe2+ {[%clk 0:02:53.9]} 8. Bxe2
{[%clk 0:02:45.9]} 8... Be7 {[%clk 0:02:54.8]} 9. Nc3 {[%clk 0:02:43.8]} 9... c6
{[%clk 0:02:54.7]} 10. O-O-O {[%clk 0:02:42.9]} 10... Na6 {[%clk 0:02:54.8]} 11.
d4 {[%clk 0:02:41.9]} 11... Nc7 {[%clk 0:02:49.9]} 12. Rhe1 {[%clk 0:02:38.8]}
12... Ne6 {[%clk 0:02:49.5]} 13. Bh4 {[%clk 0:02:33.9]} 13... d5 {[%clk
0:02:49.4]} 14. h3 {[%clk 0:02:23]} 14... h6 {[%clk 0:02:42.1]} 15. Bf1 {[%clk
0:02:17.7]} 15... O-O {[%clk 0:02:38.7]} 16. g4 {[%clk 0:02:15.2]} 16... Re8
{[%clk 0:02:35.1]} 17. Bg3 {[%clk 0:02:00.2]} 17... Ng5 {[%clk 0:02:27.8]} 18.
Nxg5 {[%clk 0:01:57.8]} 18... hxg5 {[%clk 0:02:27.5]} 19. Rd2 {[%clk 0:01:52.7]}
19... Be6 {[%clk 0:02:26.3]} 20. f3 {[%clk 0:01:39.5]} 20... Bb4 {[%clk
0:02:21.3]} 21. a3 {[%clk 0:01:32.9]} 21... Bf8 {[%clk 0:02:01.5]} 22. h4 {[%clk
0:01:26.8]} 22... Nh7 {[%clk 0:01:51.8]} 23. Bd3 {[%clk 0:01:20.8]} 23... gxh4
{[%clk 0:01:43.8]} 24. Bxh4 {[%clk 0:01:16.3]} 24... g6 {[%clk 0:01:44]} 25.
Rde2 {[%clk 0:01:11.4]} 25... Bh6+ {[%clk 0:01:42.3]} 26. Kb1 {[%clk 0:01:06.7]}
26... Ng5 {[%clk 0:01:34.7]} 27. Rf1 {[%clk 0:00:53.3]} 27... Nh3 {[%clk
0:01:30.3]} 28. Bg3 {[%clk 0:00:37.1]} 28... Nf4 {[%clk 0:01:26.4]} 29. Bxf4
{[%clk 0:00:36.9]} 29... Bxf4 {[%clk 0:01:26]} 30. Rg2 {[%clk 0:00:24.8]} 30...
Kg7 {[%clk 0:01:12]} 31. Ne2 {[%clk 0:00:24.7]} 31... Bd6 {[%clk 0:01:07.6]} 32.
f4 {[%clk 0:00:19.7]} 32... Bd7 {[%clk 0:01:07.3]} 33. g5 {[%clk 0:00:15.9]}
33... Bh3 {[%clk 0:01:05.1]} 34. Rgf2 {[%clk 0:00:12.6]} 34... Bxf1 {[%clk
0:01:03.6]} 35. Rxf1 {[%clk 0:00:12.3]} 35... Re3 {[%clk 0:01:01]} 36. f5 {[%clk
0:00:10]} 36... gxf5 {[%clk 0:01:00.1]} 37. Rxf5 {[%clk 0:00:09]} 37... Rae8
{[%clk 0:00:57.7]} 38. Nf4 {[%clk 0:00:09.3]} 38... Bxf4 {[%clk 0:00:53.2]} 39.
Rxf4 {[%clk 0:00:08.6]} 39... Re1+ {[%clk 0:00:52.6]} 40. Ka2 {[%clk 0:00:08.1]}
40... Rg1 {[%clk 0:00:52.2]} 41. Rh4 {[%clk 0:00:07.8]} 41... Rxg5 {[%clk
0:00:50.8]} 42. Rh7+ {[%clk 0:00:07.7]} 42... Kf6 {[%clk 0:00:50.8]} 43. c4
{[%clk 0:00:03.8]} 43... Re3 {[%clk 0:00:47.8]} 44. Bc2 {[%clk 0:00:03.1]} 44...
dxc4 {[%clk 0:00:46.8]} 0-1

[Event "*** Titled Tuesday Blitz"]
[Site "Chess.com"]
[Date "2020.12.01"]
[Round "1"]
[White "InitiatingASC"]
[Black "exoticprincess"]
[Result "0-1"]
[WhiteElo "2434"]
[BlackElo "2897"]
[TimeControl "180+1"]
[EndTime "10:07:11 PST"]
[Termination "exoticprincess won by resignation"]

1. Nf3 {[%clk 0:02:59.5]} 1... d5 {[%clk 0:02:59.2]} 2. g3 {[%clk 0:02:58.8]}
2... c6 {[%clk 0:02:58.8]} 3. Bg2 {[%clk 0:02:59]} 3... Bg4 {[%clk 0:02:59.1]}
4. O-O {[%clk 0:02:59.6]} 4... e6 {[%clk 0:02:59.2]} 5. d3 {[%clk 0:02:57.5]}
5... Nd7 {[%clk 0:02:59]} 6. Nbd2 {[%clk 0:02:56.1]} 6... g6 {[%clk 0:02:59]} 7.
Rb1 {[%clk 0:02:54.8]} 7... Bg7 {[%clk 0:02:58.3]} 8. a3 {[%clk 0:02:55]} 8...
Ne7 {[%clk 0:02:57.9]} 9. b4 {[%clk 0:02:55]} 9... O-O {[%clk 0:02:57.7]} 10.
Bb2 {[%clk 0:02:55.3]} 10... Bxb2 {[%clk 0:02:56.6]} 11. Rxb2 {[%clk 0:02:56.2]}
11... Bxf3 {[%clk 0:02:54.3]} 12. Bxf3 {[%clk 0:02:52.2]} 12... Qc7 {[%clk
0:02:53.7]} 13. c4 {[%clk 0:02:51.3]} 13... Rfd8 {[%clk 0:02:50.8]} 14. Qb1
{[%clk 0:02:46.5]} 14... Ne5 {[%clk 0:02:45.3]} 15. Bg2 {[%clk 0:02:46.7]} 15...
dxc4 {[%clk 0:02:42]} 16. Nxc4 {[%clk 0:02:43]} 16... Nxc4 {[%clk 0:02:41.2]}
17. dxc4 {[%clk 0:02:43.1]} 17... Rd4 {[%clk 0:02:41.6]} 18. Rc2 {[%clk
0:02:31.2]} 18... Rad8 {[%clk 0:02:40.5]} 19. Qb2 {[%clk 0:02:28]} 19... Nf5
{[%clk 0:02:34.6]} 20. b5 {[%clk 0:02:19.5]} 20... c5 {[%clk 0:02:32.1]} 21. Qc3
{[%clk 0:02:17.3]} 21... b6 {[%clk 0:02:30.3]} 22. Rfc1 {[%clk 0:02:05.9]} 22...
Rd1+ {[%clk 0:02:16.1]} 23. Bf1 {[%clk 0:02:05]} 23... Qd6 {[%clk 0:02:10.7]}
24. a4 {[%clk 0:01:54.7]} 24... h5 {[%clk 0:02:08.2]} 25. h4 {[%clk 0:01:49]}
25... Rd4 {[%clk 0:01:56.7]} 26. Qf3 {[%clk 0:01:38.1]} 26... Rg4 {[%clk
0:01:53.2]} 27. Rc3 {[%clk 0:01:13.8]} 27... Nxh4 {[%clk 0:01:47.7]} 28. Qb7
{[%clk 0:01:13.7]} 28... Nf5 {[%clk 0:01:24.3]} 29. Rd3 {[%clk 0:01:04.9]} 29...
Rd4 {[%clk 0:01:20.1]} 30. Rcd1 {[%clk 0:01:01.8]} 30... h4 {[%clk 0:01:06.1]}
31. e3 {[%clk 0:00:42.9]} 31... Nxe3 {[%clk 0:00:49.4]} 32. fxe3 {[%clk
0:00:40]} 32... Rxd3 {[%clk 0:00:49]} 33. Rxd3 {[%clk 0:00:38.1]} 33... Qxg3+
{[%clk 0:00:47.5]} 34. Qg2 {[%clk 0:00:38.1]} 34... Qxg2+ {[%clk 0:00:45.9]} 35.
Kxg2 {[%clk 0:00:37]} 35... Rxd3 {[%clk 0:00:46.8]} 36. Bxd3 {[%clk 0:00:36.7]}
36... f5 {[%clk 0:00:45.9]} 37. e4 {[%clk 0:00:32.5]} 37... Kg7 {[%clk
0:00:45.2]} 38. e5 {[%clk 0:00:32.5]} 38... g5 {[%clk 0:00:43.9]} 39. Kf3 {[%clk
0:00:30.9]} 39... Kg6 {[%clk 0:00:43]} 40. a5 {[%clk 0:00:21.8]} 40... bxa5
{[%clk 0:00:41.3]} 41. Bc2 {[%clk 0:00:20.1]} 41... Kh5 {[%clk 0:00:39.9]} 42.
Kg2 {[%clk 0:00:16.9]} 42... g4 {[%clk 0:00:39.1]} 43. Bd1 {[%clk 0:00:13.5]}
43... Kg5 {[%clk 0:00:39]} 44. Kf2 {[%clk 0:00:07.8]} 44... Kf4 {[%clk
0:00:38.9]} 45. Kg2 {[%clk 0:00:05.5]} 45... Kxe5 {[%clk 0:00:38.7]} 46. Be2
{[%clk 0:00:06]} 46... a4 {[%clk 0:00:38]} 0-1

[Event "*** Titled Tuesday Blitz"]
[Site "Chess.com"]
[Date "2020.12.01"]
[Round "1"]
[White "redbaron8888"]
[Black "ecwinslow"]
[Result "1-0"]
[WhiteElo "2552"]
[BlackElo "2231"]
[TimeControl "180+1"]
[EndTime "10:07:12 PST"]
[Termination "redbaron8888 won on time"]

1. d4 {[%clk 0:03:00.9]} 1... Nf6 {[%clk 0:02:58.9]} 2. c4 {[%clk 0:03:00]} 2...
e6 {[%clk 0:02:59]} 3. g3 {[%clk 0:02:54.3]} 3... c5 {[%clk 0:02:57.6]} 4. d5
{[%clk 0:02:53.9]} 4... exd5 {[%clk 0:02:57.4]} 5. cxd5 {[%clk 0:02:54.8]} 5...
d6 {[%clk 0:02:57.6]} 6. Nc3 {[%clk 0:02:53.5]} 6... g6 {[%clk 0:02:57.9]} 7.
Bg2 {[%clk 0:02:53.3]} 7... Bg7 {[%clk 0:02:58]} 8. Nf3 {[%clk 0:02:53]} 8...
O-O {[%clk 0:02:57.4]} 9. O-O {[%clk 0:02:53.1]} 9... Re8 {[%clk 0:02:48.1]} 10.
Re1 {[%clk 0:02:48.3]} 10... a6 {[%clk 0:02:41.3]} 11. a4 {[%clk 0:02:46.5]}
11... Bg4 {[%clk 0:02:27.8]} 12. h3 {[%clk 0:02:39.8]} 12... Bxf3 {[%clk
0:02:27.4]} 13. Bxf3 {[%clk 0:02:40.7]} 13... Nbd7 {[%clk 0:02:26.7]} 14. Bg2
{[%clk 0:02:30.9]} 14... Rb8 {[%clk 0:02:25.5]} 15. a5 {[%clk 0:02:29.6]} 15...
b5 {[%clk 0:02:24]} 16. axb6 {[%clk 0:02:30.5]} 16... Rxb6 {[%clk 0:02:18.6]}
17. e4 {[%clk 0:02:23.7]} 17... h5 {[%clk 0:01:46.1]} 18. Qe2 {[%clk 0:02:18.7]}
18... Qc8 {[%clk 0:01:37.8]} 19. Bf4 {[%clk 0:02:06.7]} 19... Ne5 {[%clk
0:01:34.8]} 20. Bxe5 {[%clk 0:01:56.1]} 20... Rxe5 {[%clk 0:01:28.9]} 21. Qc2
{[%clk 0:01:53.2]} 21... Qb8 {[%clk 0:01:17.1]} 22. Re2 {[%clk 0:01:49.6]} 22...
Re7 {[%clk 0:01:12.4]} 23. f4 {[%clk 0:01:44.3]} 23... Reb7 {[%clk 0:01:04.9]}
24. Ra2 {[%clk 0:01:38.6]} 24... Nd7 {[%clk 0:01:04.6]} 25. Kh2 {[%clk
0:01:12.1]} 25... Bd4 {[%clk 0:00:56.7]} 26. e5 {[%clk 0:00:53.7]} 26... dxe5
{[%clk 0:00:54.9]} 27. f5 {[%clk 0:00:53.5]} 27... h4 {[%clk 0:00:45.5]} 28. d6
{[%clk 0:00:49.9]} 28... hxg3+ {[%clk 0:00:30.9]} 29. Kxg3 {[%clk 0:00:50.8]}
29... e4 {[%clk 0:00:19.6]} 30. Bxe4 {[%clk 0:00:33.9]} 30... Qxd6+ {[%clk
0:00:18.6]} 31. Kg2 {[%clk 0:00:33.9]} 31... Rb8 {[%clk 0:00:17.8]} 32. fxg6
{[%clk 0:00:31.3]} 32... fxg6 {[%clk 0:00:17.9]} 33. Bd5+ {[%clk 0:00:29.8]}
33... Kg7 {[%clk 0:00:17.8]} 34. Re6 {[%clk 0:00:28]} 34... Qxe6 {[%clk
0:00:12.9]} 35. Bxe6 {[%clk 0:00:28.9]} 35... Rxe6 {[%clk 0:00:12.1]} 36. Ne2
{[%clk 0:00:24.7]} 36... Bf6 {[%clk 0:00:09]} 37. Nf4 {[%clk 0:00:23.6]} 37...
Rd6 {[%clk 0:00:05.3]} 38. Qxg6+ {[%clk 0:00:22.5]} 38... Kf8 {[%clk 0:00:05.6]}
39. Qf5 {[%clk 0:00:20.3]} 39... Rb4 {[%clk 0:00:04.3]} 40. Nd5 {[%clk 0:00:19]}
1-0

[Event "*** Titled Tuesday Blitz"]
[Site "Chess.com"]
[Date "2020.12.01"]
[Round "1"]
[White "Jabberwockiez"]
[Black "Fh2411"]
[Result "0-1"]
[WhiteElo "2239"]
[BlackElo "2558"]
[TimeControl "180+1"]
[EndTime "10:07:13 PST"]
[Termination "Fh2411 won by resignation"]

1. e4 {[%clk 0:02:59.7]} 1... c5 {[%clk 0:02:58.2]} 2. Nc3 {[%clk 0:02:59.4]}
2... e6 {[%clk 0:02:59.1]} 3. Nf3 {[%clk 0:02:59.7]} 3... a6 {[%clk 0:02:58.1]}
4. d4 {[%clk 0:02:59.8]} 4... cxd4 {[%clk 0:02:57]} 5. Nxd4 {[%clk 0:03:00.7]}
5... Qc7 {[%clk 0:02:57.5]} 6. Be3 {[%clk 0:03:00.1]} 6... Bb4 {[%clk
0:02:55.3]} 7. Qd2 {[%clk 0:02:57.2]} 7... Nf6 {[%clk 0:02:53.1]} 8. Bd3 {[%clk
0:02:57.1]} 8... d5 {[%clk 0:02:51.1]} 9. e5 {[%clk 0:02:45.4]} 9... Nfd7 {[%clk
0:02:44.7]} 10. f4 {[%clk 0:02:43.9]} 10... Nc6 {[%clk 0:02:32.7]} 11. O-O
{[%clk 0:02:36]} 11... Ne7 {[%clk 0:02:31.3]} 12. f5 {[%clk 0:02:30.2]} 12...
Nxe5 {[%clk 0:02:28.4]} 13. fxe6 {[%clk 0:02:21.9]} 13... fxe6 {[%clk
0:02:26.6]} 14. Bf4 {[%clk 0:02:01.8]} 14... Bd6 {[%clk 0:02:16.9]} 15. Kh1
{[%clk 0:01:31.8]} 15... Nxd3 {[%clk 0:02:08.3]} 16. Bxd6 {[%clk 0:01:28.6]}
16... Qxd6 {[%clk 0:02:07.5]} 17. Qxd3 {[%clk 0:01:28.8]} 17... e5 {[%clk
0:02:02.2]} 18. Qg3 {[%clk 0:01:02.7]} 18... Ng6 {[%clk 0:01:56.8]} 19. Nf5
{[%clk 0:00:55.7]} 19... Bxf5 {[%clk 0:01:56.2]} 20. Rxf5 {[%clk 0:00:56.6]}
20... O-O-O {[%clk 0:01:54.5]} 21. Rd1 {[%clk 0:00:55.8]} 21... Qe6 {[%clk
0:01:49.8]} 22. Rf2 {[%clk 0:00:51.2]} 22... Rd7 {[%clk 0:01:45.6]} 23. Na4
{[%clk 0:00:49.2]} 23... Qc6 {[%clk 0:01:41.6]} 24. Rf3 {[%clk 0:00:44.8]} 24...
Qxa4 {[%clk 0:01:36.8]} 25. Rc3+ {[%clk 0:00:43.1]} 25... Kb8 {[%clk 0:01:36.7]}
26. b3 {[%clk 0:00:39.3]} 26... Qf4 {[%clk 0:01:31.4]} 27. Qd3 {[%clk
0:00:37.6]} 27... Rhd8 {[%clk 0:01:17.2]} 28. Rc5 {[%clk 0:00:35.4]} 28... Qb4
{[%clk 0:01:11.9]} 29. Rc3 {[%clk 0:00:22.5]} 29... Ka8 {[%clk 0:01:05]} 30. a3
{[%clk 0:00:20.5]} 30... Qb6 {[%clk 0:01:01.7]} 31. b4 {[%clk 0:00:20.1]} 31...
Nf4 {[%clk 0:00:59.1]} 32. Qf3 {[%clk 0:00:19.9]} 32... g5 {[%clk 0:00:56.4]}
33. Rc5 {[%clk 0:00:19.9]} 33... e4 {[%clk 0:00:55.4]} 34. Qe3 {[%clk
0:00:19.7]} 34... Qe6 {[%clk 0:00:52.9]} 35. Qd4 {[%clk 0:00:19.1]} 35... Qg4
{[%clk 0:00:47.7]} 36. Rg1 {[%clk 0:00:17]} 36... Ne2 {[%clk 0:00:45.2]} 37. Qe3
{[%clk 0:00:15.9]} 37... Nxg1 {[%clk 0:00:44.2]} 38. b5 {[%clk 0:00:16.4]} 38...
Qd1 {[%clk 0:00:40.6]} 39. Qxg1 {[%clk 0:00:13.4]} 39... Qxg1+ {[%clk
0:00:40.5]} 40. Kxg1 {[%clk 0:00:14.3]} 40... axb5 {[%clk 0:00:40.1]} 41. Rxb5
{[%clk 0:00:15.2]} 41... d4 {[%clk 0:00:39.8]} 42. Kf2 {[%clk 0:00:16]} 42... d3
{[%clk 0:00:40.1]} 43. cxd3 {[%clk 0:00:15.3]} 43... exd3 {[%clk 0:00:41]} 44.
Rb1 {[%clk 0:00:13.8]} 44... d2 {[%clk 0:00:41]} 45. Rd1 {[%clk 0:00:14.5]}
45... Re8 {[%clk 0:00:41]} 46. g3 {[%clk 0:00:13.3]} 46... g4 {[%clk 0:00:39.6]}
0-1

[Event "*** Titled Tuesday Blitz"]
[Site "Chess.com"]
[Date "2020.12.01"]
[Round "1"]
[White "queen_iryna"]
[Black "Love_craft"]
[Result "1-0"]
[WhiteElo "2309"]
[BlackElo "2587"]
[TimeControl "180+1"]
[EndTime "10:07:14 PST"]
[Termination "queen_iryna won on time"]

1. e4 {[%clk 0:02:58.5]} 1... g6 {[%clk 0:02:57.4]} 2. d4 {[%clk 0:02:57.6]}
2... Bg7 {[%clk 0:02:57.7]} 3. Nc3 {[%clk 0:02:55.4]} 3... d6 {[%clk 0:02:57.7]}
4. Be3 {[%clk 0:02:54.7]} 4... a6 {[%clk 0:02:57]} 5. Qd2 {[%clk 0:02:48.9]}
5... b5 {[%clk 0:02:56.8]} 6. h4 {[%clk 0:02:46.6]} 6... h5 {[%clk 0:02:56.8]}
7. f4 {[%clk 0:02:45.6]} 7... Nf6 {[%clk 0:02:54.6]} 8. Bd3 {[%clk 0:02:45.3]}
8... Bb7 {[%clk 0:02:52.4]} 9. e5 {[%clk 0:02:40.9]} 9... Ng4 {[%clk 0:02:49.2]}
10. Nf3 {[%clk 0:02:36]} 10... e6 {[%clk 0:02:41.2]} 11. Ne4 {[%clk 0:02:09.3]}
11... Nc6 {[%clk 0:02:35.7]} 12. O-O-O {[%clk 0:01:53.3]} 12... Ne7 {[%clk
0:02:29.3]} 13. Bg1 {[%clk 0:01:49.2]} 13... Nf5 {[%clk 0:02:19.7]} 14. Kb1
{[%clk 0:01:42.5]} 14... Qe7 {[%clk 0:01:30]} 15. Neg5 {[%clk 0:00:44.4]} 15...
Bd5 {[%clk 0:01:23.8]} 16. Be4 {[%clk 0:00:38.8]} 16... Bxe4 {[%clk 0:01:19]}
17. Nxe4 {[%clk 0:00:39.7]} 17... Rd8 {[%clk 0:00:57.6]} 18. Qa5 {[%clk
0:00:31.9]} 18... O-O {[%clk 0:00:36.4]} 19. Nh2 {[%clk 0:00:17.4]} 19... Nge3
{[%clk 0:00:24.6]} 20. Rd3 {[%clk 0:00:14]} 20... Nc4 {[%clk 0:00:20.7]} 21.
Qxa6 {[%clk 0:00:12.7]} 21... Ra8 {[%clk 0:00:20]} 22. Qxb5 {[%clk 0:00:12.6]}
22... Nxb2 {[%clk 0:00:16.8]} 23. Qxb2 {[%clk 0:00:12]} 23... c5 {[%clk
0:00:08.6]} 24. exd6 {[%clk 0:00:10.8]} 24... Qa7 {[%clk 0:00:07.2]} 25. Rb3
{[%clk 0:00:09.4]} 25... cxd4 {[%clk 0:00:06.6]} 26. g3 {[%clk 0:00:06.4]} 26...
Qa6 {[%clk 0:00:04.9]} 27. Bf2 {[%clk 0:00:05.5]} 27... Qe2 {[%clk 0:00:03.9]}
28. Re1 {[%clk 0:00:04.7]} 28... Qc4 {[%clk 0:00:01.5]} 29. Rb4 {[%clk
0:00:04.2]} 1-0